[Event "Titled Tuesday Blitz April 26 Late 2022"]
[White "Korchmar, Vasiliy"]
[Black "Remolar Gallen, Jose"]
[WhiteFideId "24131750"]
[BlackFideId "2215187"]
[WhiteElo "2370"]
[BlackElo "2205"]
[Result "1-0"]
[Round "06"]
[TimeControl "180+1"]
[Date "2022.04.26"]
[WhiteClock "0:00:03"]
[BlackClock "0:00:01"]

1. e4 {[%clk 0:03:00]}  c5 {[%clk 0:02:56]} 2. Nf3 {[%clk 0:02:59]}  d6 {[%clk 0:02:55]} 3. d4 {[%clk 0:02:59]}  cxd4 {[%clk 0:02:55]} 4. Nxd4 {[%clk 0:03:00]}  Nf6 {[%clk 0:02:56]} 5. Nc3 {[%clk 0:03:00]}  a6 {[%clk 0:02:57]} 6. f3 {[%clk 0:03:00]}  e5 {[%clk 0:02:54]} 7. Nb3 {[%clk 0:02:59]}  Be7 {[%clk 0:02:46]} 8. Be3 {[%clk 0:03:00]}  Be6 {[%clk 0:02:45]} 9. Qd2 {[%clk 0:02:59]}  Nbd7 {[%clk 0:02:43]} 10. g4 {[%clk 0:02:59]}  b5 {[%clk 0:02:32]} 11. O-O-O {[%clk 0:02:59]}  Qc7 {[%clk 0:02:26]} 12. h4 {[%clk 0:02:48]}  b4 {[%clk 0:02:18]} 13. Nd5 {[%clk 0:02:44]}  Bxd5 {[%clk 0:02:18]} 14. exd5 {[%clk 0:02:44]}  a5 {[%clk 0:02:19]} 15. Kb1 {[%clk 0:02:39]}  O-O {[%clk 0:01:41]} 16. h5 {[%clk 0:02:39]}  Nb6 {[%clk 0:01:40]} 17. Bxb6 {[%clk 0:02:32]}  Qxb6 {[%clk 0:01:41]} 18. g5 {[%clk 0:02:32]}  Nd7 {[%clk 0:01:39]} 19. g6 {[%clk 0:02:29]}  h6 {[%clk 0:01:37]} 20. gxf7+ {[%clk 0:02:19]}  Rxf7 {[%clk 0:01:37]} 21. Bh3 {[%clk 0:02:20]}  Bg5 {[%clk 0:01:27]} 22. Qd3 {[%clk 0:02:16]}  a4 {[%clk 0:01:24]} 23. Nd2 {[%clk 0:01:59]}  Nc5 {[%clk 0:01:20]} 24. Qc4 {[%clk 0:01:50]}  b3 {[%clk 0:01:13]} 25. cxb3 {[%clk 0:01:46]}  Bxd2 {[%clk 0:00:57]} 26. Rxd2 {[%clk 0:01:47]}  Rf4 {[%clk 0:00:53]} 27. Qc3 {[%clk 0:01:40]}  axb3 {[%clk 0:00:52]} 28. a3 {[%clk 0:01:40]}  Raf8 {[%clk 0:00:45]} 29. Bg4 {[%clk 0:01:40]}  Rxg4 {[%clk 0:00:39]} 30. fxg4 {[%clk 0:01:39]}  Ne4 {[%clk 0:00:39]} 31. Qd3 {[%clk 0:01:35]}  Nxd2+ {[%clk 0:00:32]} 32. Qxd2 {[%clk 0:01:36]}  Rf2 {[%clk 0:00:14]} 33. Qd3 {[%clk 0:01:36]}  Qd4 {[%clk 0:00:10]} 34. Qxd4 {[%clk 0:00:48]}  exd4 {[%clk 0:00:11]} 35. Rg1 {[%clk 0:00:45]}  d3 {[%clk 0:00:10]} 36. Kc1 {[%clk 0:00:28]}  Rc2+ {[%clk 0:00:09]} 37. Kb1 {[%clk 0:00:29]}  Re2 {[%clk 0:00:06]} 38. Kc1 {[%clk 0:00:27]}  Rc2+ {[%clk 0:00:04]} 39. Kb1 {[%clk 0:00:27]}  Kf7 {[%clk 0:00:03]} 40. Rd1 {[%clk 0:00:14]}  d2 {[%clk 0:00:04]} 41. a4 {[%clk 0:00:14]}  Ke7 {[%clk 0:00:01]} 42. a5 {[%clk 0:00:14]}  Rc5 {[%clk 0:00:02]} 43. Rxd2 {[%clk 0:00:12]}  Rxa5 {[%clk 0:00:02]} 44. Rd4 {[%clk 0:00:08]}  Kf6 {[%clk 0:00:02]} 45. Kc1 {[%clk 0:00:08]}  Ke5 {[%clk 0:00:02]} 46. Rd3 {[%clk 0:00:08]}  Rxd5 {[%clk 0:00:01]} 47. Rxb3 {[%clk 0:00:09]}  Rd4 {[%clk 0:00:02]} 48. Rg3 {[%clk 0:00:07]}  d5 {[%clk 0:00:03]} 49. Kc2 {[%clk 0:00:07]}  Kf4 {[%clk 0:00:03]} 50. Rg2 {[%clk 0:00:06]}  Re4 {[%clk 0:00:03]} 51. Kd3 {[%clk 0:00:04]}  Re3+ {[%clk 0:00:03]} 52. Kd4 {[%clk 0:00:04]}  Re4+ {[%clk 0:00:03]} 53. Kxd5 {[%clk 0:00:05]}  Rb4 {[%clk 0:00:04]} 54. Kc5 {[%clk 0:00:05]}  Rb3 {[%clk 0:00:04]} 55. Kc4 {[%clk 0:00:05]}  Rb7 {[%clk 0:00:05]} 56. b4 {[%clk 0:00:05]}  Kf3 {[%clk 0:00:05]} 57. Rg1 {[%clk 0:00:06]}  Kf2 {[%clk 0:00:06]} 58. Rd1 {[%clk 0:00:06]}  Kf3 {[%clk 0:00:06]} 59. Rd4 {[%clk 0:00:06]}  Ke3 {[%clk 0:00:05]} 60. Rd5 {[%clk 0:00:05]}  Kf3 {[%clk 0:00:05]} 61. g5 {[%clk 0:00:03]}  Kg4 {[%clk 0:00:03]} 62. g6 {[%clk 0:00:03]}  Kf4 {[%clk 0:00:02]} 63. b5 {[%clk 0:00:03]}  Ke4 {[%clk 0:00:03]} 64. Rc5 {[%clk 0:00:03]}  Kf4 {[%clk 0:00:01]} 65. Kb4 {[%clk 0:00:02]}  Ke4 {[%clk 0:00:01]} 66. Ka5 {[%clk 0:00:02]}  Kd4 {[%clk 0:00:02]} 67. Rf5 {[%clk 0:00:02]}  Kc4 {[%clk 0:00:01]} 68. Rf7 {[%clk 0:00:03]}  Rb6 {[%clk 0:00:01]} 69. Kxb6 {[%clk 0:00:03]} 1-0


[Site "https://www.chess.com"]

[Event "Titled Tuesday Blitz April 26 Late 2022"]
[White "Mangialardo, Tiago Carvalho"]
[Black "Ricaurte Lopez, Juan Carlos"]
[WhiteFideId "2130718"]
[BlackFideId "3600327"]
[WhiteElo "2070"]
[BlackElo "2209"]
[Result "0-1"]
[Round "06"]
[TimeControl "180+1"]
[Date "2022.04.26"]
[WhiteClock "0:00:01"]
[BlackClock "0:00:07"]

1. e4 {[%clk 0:02:37]}  e5 {[%clk 0:02:48]} 2. Nf3 {[%clk 0:02:36]}  d5 {[%clk 0:02:48]} 3. Nxe5 {[%clk 0:02:35]}  Bd6 {[%clk 0:02:46]} 4. d4 {[%clk 0:02:34]}  dxe4 {[%clk 0:02:46]} 5. Nc4 {[%clk 0:02:19]}  Nf6 {[%clk 0:02:44]} 6. Be2 {[%clk 0:02:08]}  Nc6 {[%clk 0:02:40]} 7. c3 {[%clk 0:02:06]}  O-O {[%clk 0:02:35]} 8. O-O {[%clk 0:02:05]}  h6 {[%clk 0:02:34]} 9. Nxd6 {[%clk 0:01:51]}  Qxd6 {[%clk 0:02:35]} 10. f3 {[%clk 0:01:52]}  Bf5 {[%clk 0:02:29]} 11. fxe4 {[%clk 0:01:52]}  Bxe4 {[%clk 0:02:27]} 12. Bf4 {[%clk 0:01:52]}  Qd5 {[%clk 0:02:22]} 13. Bf3 {[%clk 0:01:50]}  Rfe8 {[%clk 0:02:20]} 14. Nd2 {[%clk 0:01:49]}  Bxf3 {[%clk 0:02:15]} 15. Nxf3 {[%clk 0:01:45]}  Re7 {[%clk 0:02:11]} 16. b3 {[%clk 0:01:32]}  Rae8 {[%clk 0:02:09]} 17. c4 {[%clk 0:01:30]}  Qe4 {[%clk 0:01:42]} 18. Bg3 {[%clk 0:01:08]}  Nh5 {[%clk 0:01:40]} 19. Bh4 {[%clk 0:01:01]}  g5 {[%clk 0:01:31]} 20. Re1 {[%clk 0:00:47]}  Qg4 {[%clk 0:01:24]} 21. Rxe7 {[%clk 0:00:37]}  Rxe7 {[%clk 0:01:25]} 22. h3 {[%clk 0:00:29]}  Qe4 {[%clk 0:00:55]} 23. d5 {[%clk 0:00:17]}  Nb4 {[%clk 0:00:48]} 24. d6 {[%clk 0:00:11]}  cxd6 {[%clk 0:00:35]} 25. Qxd6 {[%clk 0:00:12]}  Nc2 {[%clk 0:00:30]} 26. Qxh6 {[%clk 0:00:04]}  gxh4 {[%clk 0:00:20]} 27. Rf1 {[%clk 0:00:02]}  Ne3 {[%clk 0:00:17]} 28. Re1 {[%clk 0:00:01]}  Qg6 {[%clk 0:00:07]} 0-1


[Site "https://www.chess.com"]

[Event "Titled Tuesday Blitz April 26 Late 2022"]
[White "Manukyan, Sargis A."]
[Black "Schekachikhin, Maksim"]
[WhiteFideId "13303970"]
[BlackFideId "24177830"]
[WhiteElo "2187"]
[BlackElo "2230"]
[Result "0-1"]
[Round "06"]
[TimeControl "180+1"]
[Date "2022.04.26"]
[WhiteClock "0:00:10"]
[BlackClock "0:00:06"]

1. d4 {[%clk 0:02:36]}  Nf6 {[%clk 0:02:59]} 2. c4 {[%clk 0:02:36]}  b6 {[%clk 0:03:00]} 3. Nc3 {[%clk 0:02:37]}  Bb7 {[%clk 0:03:00]} 4. f3 {[%clk 0:02:37]}  d5 {[%clk 0:02:52]} 5. cxd5 {[%clk 0:02:37]}  Nxd5 {[%clk 0:02:53]} 6. e4 {[%clk 0:02:37]}  Nxc3 {[%clk 0:02:53]} 7. bxc3 {[%clk 0:02:38]}  e6 {[%clk 0:02:53]} 8. Be3 {[%clk 0:02:39]}  c5 {[%clk 0:02:51]} 9. Bb5+ {[%clk 0:02:38]}  Nd7 {[%clk 0:02:51]} 10. Ne2 {[%clk 0:02:38]}  cxd4 {[%clk 0:02:50]} 11. cxd4 {[%clk 0:02:39]}  Bb4+ {[%clk 0:02:50]} 12. Kf2 {[%clk 0:02:40]}  O-O {[%clk 0:02:51]} 13. Qa4 {[%clk 0:02:38]}  a6 {[%clk 0:02:08]} 14. Bxd7 {[%clk 0:02:36]}  Qe7 {[%clk 0:02:08]} 15. a3 {[%clk 0:02:19]}  Bd6 {[%clk 0:02:07]} 16. e5 {[%clk 0:02:16]}  Bb8 {[%clk 0:02:05]} 17. d5 {[%clk 0:01:26]}  b5 {[%clk 0:02:01]} 18. Bxb5 {[%clk 0:01:27]}  axb5 {[%clk 0:02:01]} 19. Qxb5 {[%clk 0:01:27]}  Bxd5 {[%clk 0:01:57]} 20. a4 {[%clk 0:01:14]}  Bxe5 {[%clk 0:01:56]} 21. Rab1 {[%clk 0:01:12]}  Qh4+ {[%clk 0:01:51]} 22. g3 {[%clk 0:01:11]}  Qxa4 {[%clk 0:01:52]} 23. Qxa4 {[%clk 0:01:05]}  Rxa4 {[%clk 0:01:52]} 24. Rhc1 {[%clk 0:01:04]}  h6 {[%clk 0:01:51]} 25. f4 {[%clk 0:01:04]}  Bf6 {[%clk 0:01:50]} 26. Nc3 {[%clk 0:01:00]}  Bxc3 {[%clk 0:01:38]} 27. Rxc3 {[%clk 0:01:01]}  Ra2+ {[%clk 0:01:38]} 28. Ke1 {[%clk 0:00:57]}  Rxh2 {[%clk 0:01:36]} 29. Rbc1 {[%clk 0:00:56]}  Kh7 {[%clk 0:01:31]} 30. Bf2 {[%clk 0:00:56]}  Kg6 {[%clk 0:01:29]} 31. Ke2 {[%clk 0:00:57]}  Rh1 {[%clk 0:01:26]} 32. Rxh1 {[%clk 0:00:55]}  Bxh1 {[%clk 0:01:27]} 33. Ke3 {[%clk 0:00:53]}  Rd8 {[%clk 0:01:25]} 34. g4 {[%clk 0:00:52]}  h5 {[%clk 0:01:18]} 35. Bh4 {[%clk 0:00:50]}  Rd7 {[%clk 0:01:11]} 36. gxh5+ {[%clk 0:00:51]}  Kxh5 {[%clk 0:01:11]} 37. Be1 {[%clk 0:00:49]}  Kg6 {[%clk 0:01:10]} 38. Kf2 {[%clk 0:00:48]}  Kf5 {[%clk 0:01:09]} 39. Kg3 {[%clk 0:00:44]}  Bd5 {[%clk 0:01:06]} 40. Bf2 {[%clk 0:00:45]}  f6 {[%clk 0:01:05]} 41. Be3 {[%clk 0:00:42]}  Rb7 {[%clk 0:01:05]} 42. Rc1 {[%clk 0:00:34]}  g6 {[%clk 0:01:04]} 43. Re1 {[%clk 0:00:33]}  Rb2 {[%clk 0:01:03]} 44. Bf2 {[%clk 0:00:31]}  Rc2 {[%clk 0:00:58]} 45. Re3 {[%clk 0:00:30]}  Rc1 {[%clk 0:00:54]} 46. Re1 {[%clk 0:00:30]}  Rc2 {[%clk 0:00:51]} 47. Be3 {[%clk 0:00:22]}  Rg2+ {[%clk 0:00:50]} 48. Kh3 {[%clk 0:00:22]}  Rg4 {[%clk 0:00:48]} 49. Bc1 {[%clk 0:00:21]}  Bg2+ {[%clk 0:00:40]} 50. Kh2 {[%clk 0:00:22]}  Bf3 {[%clk 0:00:40]} 51. Rg1 {[%clk 0:00:21]}  Rh4+ {[%clk 0:00:25]} 52. Kg3 {[%clk 0:00:21]}  Rg4+ {[%clk 0:00:23]} 53. Kf2 {[%clk 0:00:21]}  Rxg1 {[%clk 0:00:21]} 54. Kxg1 {[%clk 0:00:22]}  e5 {[%clk 0:00:21]} 55. fxe5 {[%clk 0:00:22]}  Kxe5 {[%clk 0:00:22]} 56. Kf2 {[%clk 0:00:23]}  Bd5 {[%clk 0:00:21]} 57. Bb2+ {[%clk 0:00:23]}  Kf5 {[%clk 0:00:21]} 58. Ba3 {[%clk 0:00:23]}  Kg4 {[%clk 0:00:19]} 59. Be7 {[%clk 0:00:22]}  f5 {[%clk 0:00:19]} 60. Bd8 {[%clk 0:00:22]}  g5 {[%clk 0:00:18]} 61. Be7 {[%clk 0:00:20]}  f4 {[%clk 0:00:16]} 62. Bd8 {[%clk 0:00:16]}  Kf5 {[%clk 0:00:16]} 63. Be7 {[%clk 0:00:16]}  g4 {[%clk 0:00:17]} 64. Bh4 {[%clk 0:00:17]}  Ke4 {[%clk 0:00:16]} 65. Bd8 {[%clk 0:00:14]}  g3+ {[%clk 0:00:16]} 66. Kg1 {[%clk 0:00:13]}  Kf3 {[%clk 0:00:15]} 67. Bc7 {[%clk 0:00:13]}  Kg4 {[%clk 0:00:15]} 68. Bb8 {[%clk 0:00:13]}  f3 {[%clk 0:00:12]} 69. Ba7 {[%clk 0:00:13]}  Kf5 {[%clk 0:00:11]} 70. Bb6 {[%clk 0:00:08]}  Ke4 {[%clk 0:00:11]} 71. Kf1 {[%clk 0:00:07]}  Bc4+ {[%clk 0:00:11]} 72. Ke1 {[%clk 0:00:07]}  Kd3 {[%clk 0:00:08]} 73. Ba7 {[%clk 0:00:06]}  Ke4 {[%clk 0:00:05]} 74. Bb6 {[%clk 0:00:07]}  Kf4 {[%clk 0:00:04]} 75. Bc7+ {[%clk 0:00:06]}  Kg4 {[%clk 0:00:04]} 76. Bb6 {[%clk 0:00:04]}  Kh3 {[%clk 0:00:05]} 77. Ba7 {[%clk 0:00:04]}  Kg2 {[%clk 0:00:05]} 78. Kd2 {[%clk 0:00:02]}  f2 {[%clk 0:00:05]} 79. Kc3 {[%clk 0:00:03]}  Ba6 {[%clk 0:00:05]} 80. Kb4 {[%clk 0:00:04]}  f1=Q {[%clk 0:00:05]} 81. Bc5 {[%clk 0:00:05]}  Qb5+ {[%clk 0:00:05]} 82. Ka3 {[%clk 0:00:05]}  Qxc5+ {[%clk 0:00:05]} 83. Ka4 {[%clk 0:00:06]}  Qb5+ {[%clk 0:00:05]} 84. Ka3 {[%clk 0:00:07]}  Bb7 {[%clk 0:00:05]} 85. Ka2 {[%clk 0:00:08]}  Bd5+ {[%clk 0:00:05]} 86. Ka1 {[%clk 0:00:08]}  Qa4+ {[%clk 0:00:05]} 87. Kb1 {[%clk 0:00:09]}  Be4+ {[%clk 0:00:06]} 88. Kc1 {[%clk 0:00:10]}  Qc2# {[%clk 0:00:06]} 0-1


[Site "https://www.chess.com"]

[Event "Titled Tuesday Blitz April 26 Late 2022"]
[White "Martinez Alcantara, Jose Eduardo"]
[Black "Bryakin, Mikhail"]
[WhiteFideId "3805662"]
[BlackFideId "4165314"]
[WhiteElo "2690"]
[BlackElo "2417"]
[Result "1-0"]
[Round "06"]
[TimeControl "180+1"]
[Date "2022.04.26"]
[WhiteClock "0:02:41"]
[BlackClock "0:02:06"]

1. e4 {[%clk 0:03:00]}  d6 {[%clk 0:02:56]} 2. d4 {[%clk 0:03:01]}  Nf6 {[%clk 0:02:56]} 3. Bd3 {[%clk 0:02:59]}  g6 {[%clk 0:02:57]} 4. c3 {[%clk 0:03:00]}  Bg7 {[%clk 0:02:57]} 5. Nf3 {[%clk 0:03:01]}  Nbd7 {[%clk 0:02:57]} 6. O-O {[%clk 0:03:01]}  e5 {[%clk 0:02:57]} 7. h3 {[%clk 0:03:02]}  O-O {[%clk 0:02:58]} 8. Re1 {[%clk 0:03:03]}  c6 {[%clk 0:02:56]} 9. Be3 {[%clk 0:03:02]}  Qc7 {[%clk 0:02:56]} 10. Nbd2 {[%clk 0:03:02]}  Nh5 {[%clk 0:02:49]} 11. Qc2 {[%clk 0:03:02]}  Nf4 {[%clk 0:02:49]} 12. Bf1 {[%clk 0:02:58]}  b5 {[%clk 0:02:47]} 13. a4 {[%clk 0:02:58]}  bxa4 {[%clk 0:02:44]} 14. Rxa4 {[%clk 0:02:57]}  Bb7 {[%clk 0:02:44]} 15. Rea1 {[%clk 0:02:47]}  a5 {[%clk 0:02:24]} 16. dxe5 {[%clk 0:02:47]}  dxe5 {[%clk 0:02:18]} 17. Nc4 {[%clk 0:02:47]}  Ba6 {[%clk 0:02:07]} 18. Rxa5 {[%clk 0:02:43]}  Bxc4 {[%clk 0:02:06]} 19. Rxa8 {[%clk 0:02:43]}  Bxf1 {[%clk 0:02:06]} 20. Rxf8+ {[%clk 0:02:42]}  Bxf8 {[%clk 0:02:06]} 21. Kxf1 {[%clk 0:02:41]} 1-0


[Site "https://www.chess.com"]

[Event "Titled Tuesday Blitz April 26 Late 2022"]
[White "Migot, Tangi"]
[Black "Rosenberg, Evan S"]
[WhiteFideId "662445"]
[BlackFideId "2019299"]
[WhiteElo "2513"]
[BlackElo "2348"]
[Result "1-0"]
[Round "06"]
[TimeControl "180+1"]
[Date "2022.04.26"]
[WhiteClock "0:00:38"]
[BlackClock "0:00:02"]

1. g3 {[%clk 0:03:00]}  e5 {[%clk 0:02:58]} 2. Bg2 {[%clk 0:02:59]}  d5 {[%clk 0:02:54]} 3. c4 {[%clk 0:02:57]}  c6 {[%clk 0:02:52]} 4. cxd5 {[%clk 0:02:56]}  cxd5 {[%clk 0:02:52]} 5. Nf3 {[%clk 0:02:57]}  Nc6 {[%clk 0:02:46]} 6. d3 {[%clk 0:02:56]}  Nf6 {[%clk 0:02:17]} 7. O-O {[%clk 0:02:55]}  h6 {[%clk 0:02:08]} 8. Nc3 {[%clk 0:02:54]}  Bd6 {[%clk 0:01:58]} 9. e4 {[%clk 0:02:48]}  d4 {[%clk 0:01:56]} 10. Nb5 {[%clk 0:02:48]}  Bb8 {[%clk 0:01:49]} 11. a4 {[%clk 0:02:48]}  O-O {[%clk 0:01:49]} 12. b3 {[%clk 0:02:44]}  a6 {[%clk 0:01:48]} 13. Na3 {[%clk 0:02:44]}  b5 {[%clk 0:01:46]} 14. Bd2 {[%clk 0:02:38]}  Be6 {[%clk 0:01:19]} 15. axb5 {[%clk 0:02:31]}  axb5 {[%clk 0:01:18]} 16. Nxb5 {[%clk 0:02:29]}  Rxa1 {[%clk 0:01:19]} 17. Qxa1 {[%clk 0:02:29]}  Bxb3 {[%clk 0:01:19]} 18. Rc1 {[%clk 0:02:23]}  Ne7 {[%clk 0:01:00]} 19. Bb4 {[%clk 0:02:14]}  Re8 {[%clk 0:00:58]} 20. Qa3 {[%clk 0:02:11]}  Be6 {[%clk 0:00:51]} 21. Nd6 {[%clk 0:02:06]}  Bxd6 {[%clk 0:00:49]} 22. Bxd6 {[%clk 0:02:07]}  Ng6 {[%clk 0:00:46]} 23. Nxe5 {[%clk 0:02:03]}  Nxe5 {[%clk 0:00:45]} 24. Bxe5 {[%clk 0:02:04]}  Ng4 {[%clk 0:00:36]} 25. Bf4 {[%clk 0:01:54]}  Qf6 {[%clk 0:00:30]} 26. h3 {[%clk 0:01:47]}  Nxf2 {[%clk 0:00:29]} 27. Kxf2 {[%clk 0:01:47]}  g5 {[%clk 0:00:30]} 28. e5 {[%clk 0:01:47]}  Qf5 {[%clk 0:00:29]} 29. Qa4 {[%clk 0:01:32]}  Bd7 {[%clk 0:00:26]} 30. Qxd4 {[%clk 0:01:27]}  gxf4 {[%clk 0:00:26]} 31. gxf4 {[%clk 0:01:15]}  Bb5 {[%clk 0:00:19]} 32. Rc3 {[%clk 0:01:05]}  Re6 {[%clk 0:00:13]} 33. Qe4 {[%clk 0:00:53]}  Qxe4 {[%clk 0:00:12]} 34. Bxe4 {[%clk 0:00:54]}  Kg7 {[%clk 0:00:12]} 35. Ke3 {[%clk 0:00:53]}  Ra6 {[%clk 0:00:10]} 36. d4 {[%clk 0:00:53]}  Ra1 {[%clk 0:00:09]} 37. d5 {[%clk 0:00:53]}  Re1+ {[%clk 0:00:09]} 38. Kd4 {[%clk 0:00:53]}  Rd1+ {[%clk 0:00:09]} 39. Kc5 {[%clk 0:00:53]}  Bf1 {[%clk 0:00:08]} 40. Bf5 {[%clk 0:00:51]}  Bg2 {[%clk 0:00:04]} 41. d6 {[%clk 0:00:51]}  h5 {[%clk 0:00:03]} 42. d7 {[%clk 0:00:45]}  Rd5+ {[%clk 0:00:03]} 43. Kb6 {[%clk 0:00:45]}  Rd2 {[%clk 0:00:02]} 44. Bd3 {[%clk 0:00:38]} 1-0


[Site "https://www.chess.com"]

[Event "Titled Tuesday Blitz April 26 Late 2022"]
[White "Mirza, Diana"]
[Black "Kashefi, Amir Hosein"]
[WhiteFideId "2503999"]
[BlackFideId "12557935"]
[WhiteElo "1813"]
[BlackElo "2008"]
[Result "0-1"]
[Round "06"]
[TimeControl "180+1"]
[Date "2022.04.26"]
[WhiteClock "0:00:02"]
[BlackClock "0:00:04"]

1. e4 {[%clk 0:03:00]}  c5 {[%clk 0:02:55]} 2. Nf3 {[%clk 0:02:59]}  Nc6 {[%clk 0:02:54]} 3. Bb5 {[%clk 0:02:56]}  g6 {[%clk 0:02:48]} 4. c3 {[%clk 0:02:55]}  Bg7 {[%clk 0:02:44]} 5. O-O {[%clk 0:02:37]}  Nf6 {[%clk 0:02:41]} 6. e5 {[%clk 0:02:29]}  Nd5 {[%clk 0:02:40]} 7. d4 {[%clk 0:02:18]}  cxd4 {[%clk 0:02:14]} 8. cxd4 {[%clk 0:02:15]}  O-O {[%clk 0:02:12]} 9. Nc3 {[%clk 0:02:06]}  Nxc3 {[%clk 0:02:05]} 10. bxc3 {[%clk 0:02:06]}  d5 {[%clk 0:01:59]} 11. Bg5 {[%clk 0:01:44]}  Bg4 {[%clk 0:01:36]} 12. h3 {[%clk 0:01:43]}  Bxf3 {[%clk 0:01:34]} 13. Qxf3 {[%clk 0:01:41]}  Rc8 {[%clk 0:01:32]} 14. Qe3 {[%clk 0:01:22]}  Qa5 {[%clk 0:01:19]} 15. Rfb1 {[%clk 0:01:16]}  e6 {[%clk 0:01:04]} 16. Bf6 {[%clk 0:01:05]}  a6 {[%clk 0:00:46]} 17. Be2 {[%clk 0:00:30]}  b5 {[%clk 0:00:44]} 18. h4 {[%clk 0:00:23]}  Nb8 {[%clk 0:00:23]} 19. Rb3 {[%clk 0:00:20]}  Bxf6 {[%clk 0:00:22]} 20. exf6 {[%clk 0:00:20]}  Qd8 {[%clk 0:00:22]} 21. Qg5 {[%clk 0:00:17]}  Nd7 {[%clk 0:00:20]} 22. a4 {[%clk 0:00:11]}  Nxf6 {[%clk 0:00:15]} 23. axb5 {[%clk 0:00:10]}  axb5 {[%clk 0:00:14]} 24. Bxb5 {[%clk 0:00:09]}  Ne4 {[%clk 0:00:13]} 25. Qh6 {[%clk 0:00:08]}  Rxc3 {[%clk 0:00:08]} 26. Rxc3 {[%clk 0:00:07]}  Nxc3 {[%clk 0:00:09]} 27. h5 {[%clk 0:00:08]}  Nxb5 {[%clk 0:00:07]} 28. hxg6 {[%clk 0:00:07]}  hxg6 {[%clk 0:00:06]} 29. g3 {[%clk 0:00:07]}  Qf6 {[%clk 0:00:05]} 30. Kg2 {[%clk 0:00:06]}  Qg7 {[%clk 0:00:04]} 31. Qh4 {[%clk 0:00:06]}  Qxd4 {[%clk 0:00:04]} 32. Qh1 {[%clk 0:00:03]}  Qe4+ {[%clk 0:00:04]} 33. f3 {[%clk 0:00:02]}  Qe2+ {[%clk 0:00:04]} 34. Kh3 {[%clk 0:00:02]}  Nd4 {[%clk 0:00:04]} 0-1


[Site "https://www.chess.com"]

[Event "Titled Tuesday Blitz April 26 Late 2022"]
[White "Miszler, Levente"]
[Black "Potapova, Margarita"]
[WhiteFideId "763276"]
[BlackFideId "14126869"]
[WhiteElo "1966"]
[BlackElo "2216"]
[Result "0-1"]
[Round "06"]
[TimeControl "180+1"]
[Date "2022.04.26"]
[WhiteClock "0:00:05"]
[BlackClock "0:00:35"]

1. Nf3 {[%clk 0:03:00]}  Nf6 {[%clk 0:02:58]} 2. c4 {[%clk 0:02:58]}  e6 {[%clk 0:02:57]} 3. g3 {[%clk 0:02:58]}  b6 {[%clk 0:02:57]} 4. Bg2 {[%clk 0:02:58]}  Bb7 {[%clk 0:02:58]} 5. O-O {[%clk 0:02:59]}  Be7 {[%clk 0:02:57]} 6. b3 {[%clk 0:02:59]}  O-O {[%clk 0:02:57]} 7. Bb2 {[%clk 0:02:59]}  a5 {[%clk 0:02:51]} 8. a3 {[%clk 0:02:53]}  d5 {[%clk 0:02:45]} 9. d4 {[%clk 0:02:52]}  Nbd7 {[%clk 0:02:43]} 10. Nbd2 {[%clk 0:02:50]}  a4 {[%clk 0:02:09]} 11. b4 {[%clk 0:02:48]}  c5 {[%clk 0:02:05]} 12. dxc5 {[%clk 0:02:44]}  bxc5 {[%clk 0:02:06]} 13. cxd5 {[%clk 0:02:43]}  Nxd5 {[%clk 0:02:04]} 14. bxc5 {[%clk 0:02:39]}  Nxc5 {[%clk 0:02:04]} 15. Rb1 {[%clk 0:02:30]}  Ba6 {[%clk 0:01:57]} 16. Re1 {[%clk 0:02:16]}  Nf6 {[%clk 0:01:49]} 17. Ne5 {[%clk 0:02:10]}  Rc8 {[%clk 0:01:36]} 18. Nc6 {[%clk 0:02:09]}  Qc7 {[%clk 0:01:31]} 19. e4 {[%clk 0:01:20]}  Qxc6 {[%clk 0:01:25]} 20. Bxf6 {[%clk 0:01:15]}  gxf6 {[%clk 0:01:25]} 21. e5 {[%clk 0:01:13]}  Qc7 {[%clk 0:01:23]} 22. Rc1 {[%clk 0:01:08]}  Qd8 {[%clk 0:01:21]} 23. Qg4+ {[%clk 0:01:06]}  Kh8 {[%clk 0:01:21]} 24. exf6 {[%clk 0:01:01]}  Bxf6 {[%clk 0:01:22]} 25. Ne4 {[%clk 0:00:56]}  Nxe4 {[%clk 0:01:22]} 26. Bxe4 {[%clk 0:00:57]}  Rg8 {[%clk 0:01:22]} 27. Qh5 {[%clk 0:00:48]}  Rg7 {[%clk 0:01:21]} 28. Rcd1 {[%clk 0:00:41]}  Qf8 {[%clk 0:01:18]} 29. Rd7 {[%clk 0:00:38]}  Rd8 {[%clk 0:01:09]} 30. Ra7 {[%clk 0:00:37]}  Bd3 {[%clk 0:01:02]} 31. Rxa4 {[%clk 0:00:28]}  Bxe4 {[%clk 0:01:01]} 32. Rexe4 {[%clk 0:00:29]}  Qd6 {[%clk 0:00:59]} 33. Kg2 {[%clk 0:00:26]}  Qd5 {[%clk 0:00:58]} 34. Qf3 {[%clk 0:00:25]}  Rg6 {[%clk 0:00:51]} 35. h4 {[%clk 0:00:20]}  Bg7 {[%clk 0:00:44]} 36. Qxf7 {[%clk 0:00:17]}  Rf6 {[%clk 0:00:44]} 37. Qe7 {[%clk 0:00:17]}  Rdf8 {[%clk 0:00:43]} 38. f4 {[%clk 0:00:15]}  Qd2+ {[%clk 0:00:41]} 39. Kh3 {[%clk 0:00:15]}  Qd1 {[%clk 0:00:41]} 40. Kg2 {[%clk 0:00:14]}  Rg6 {[%clk 0:00:38]} 41. Qb4 {[%clk 0:00:06]}  Qc2+ {[%clk 0:00:35]} 42. Kh3 {[%clk 0:00:05]}  Qd3 {[%clk 0:00:35]} 0-1


[Site "https://www.chess.com"]